fUST/lending_fUST_20251128
["ID","MTS","AMOUNT","RATE_DAILY","PERIOD"]
[395010241,1764322243465,-1861.22810511,0.00010714,2]
[395010242,1764322243473,-864.0,0.00010925,2]
[395010243,1764322243483,-3313.5042313,0.00010959,2]
[395010244,1764322243493,-999.0,0.00010959,2]
[395010245,1764322243502,-566.90331551,0.00010959,2]
[395010246,1764322243511,-500.0,0.00010959,2]
[395010247,1764322243520,-500.0,0.00010959,2]
[395010248,1764322243529,-500.0,0.00010959,2]
[395010249,1764322243539,-500.0,0.00010959,2]
[395010250,1764322243548,-500.0,0.00010959,2]
[395010251,1764322243558,-500.0,0.00010959,2]
[395010252,1764322243567,-500.0,0.00010959,2]
[395010253,1764322243576,-500.0,0.00010959,2]
[395010254,1764322243586,-500.0,0.00010959,2]
[395010255,1764322243595,-500.0,0.00010959,2]
[395010256,1764322243605,-500.0,0.00010959,2]
[395010257,1764322243614,-500.0,0.00010959,2]
[395010258,1764322243624,-500.0,0.00010959,2]
[395010259,1764322243633,-500.0,0.00010959,2]
[395010260,1764322243643,-500.0,0.00010959,2]
[395010261,1764322243653,-500.0,0.00010959,2]
[395010262,1764322243663,-500.0,0.00010959,2]
[395010263,1764322243672,-500.0,0.00010959,2]
[395010264,1764322243681,-260.46138538,0.00010959,2]
[395010265,1764322243691,-500.0,0.00010959,2]
[395010266,1764322243701,-500.0,0.00010959,2]
[395010267,1764322243711,-651.79812086,0.00010959,2]
[395010268,1764322243720,-651.79812086,0.00010959,2]
[395010269,1764322243730,-651.79812086,0.00010959,2]
[395010270,1764322243740,-651.79812086,0.00010959,2]
[395010271,1764322243749,-651.79812086,0.00010959,2]
[395010272,1764322243759,-651.79812086,0.00010959,2]
[395010273,1764322243768,-651.79812086,0.00010959,2]
[395010274,1764322243777,-651.79812086,0.00010959,2]
[395010275,1764322243787,-651.79812086,0.00010959,2]
[395010276,1764322243796,-651.79812086,0.00010959,2]
[395010277,1764322243807,-651.79812086,0.00010959,2]
[395010278,1764322243820,-651.79812086,0.00010959,2]
[395010279,1764322243830,-651.79812086,0.00010959,2]
[395010280,1764322243840,-651.79812086,0.00010959,2]
[395010281,1764322243849,-651.79812086,0.00010959,2]
[395010282,1764322243859,-651.79812086,0.00010959,2]
[395010283,1764322243868,-651.79812086,0.00010959,2]
[395010284,1764322243878,-651.79812086,0.00010959,2]
[395010285,1764322243889,-651.79812086,0.00010959,2]
[395010286,1764322243901,-651.79812086,0.00010959,2]
[395010287,1764322243910,-160.0,0.00011,2]
[395010288,1764322243920,-160.0,0.00011,2]
[395010289,1764322243929,-160.0,0.00011,2]
[395010290,1764322243938,-160.0,0.00011,2]
[395010291,1764322243949,-162.42899489,0.00011,2]
[395010292,1764322243958,-151.0,0.00011,2]
[395010293,1764322243968,-151.0,0.00011,2]
[395010294,1764322243979,-151.0,0.00011,2]
[395010295,1764322243989,-1000.0,0.00011078,2]
[395010296,1764322243998,-1000.0,0.00011078,2]
[395010297,1764322244007,-500.0,0.00011078,2]
[395010298,1764322244016,-1119.90072273,0.00011078,2]
[395010299,1764322244026,-1000.0,0.00011078,2]
[395010300,1764322244034,-1000.0,0.00011078,2]
[395010301,1764322244044,-1000.0,0.00011078,2]
[395010302,1764322244054,-501.04681961,0.00011078,2]
[395010303,1764322244063,-217.15233878,0.00011096,2]
[395010304,1764322244073,-324.58044223,0.00011133,2]
[395010305,1764322244082,-507.98101226,0.00011184,2]
[395010306,1764322244093,-502.48094318,0.00011184,2]
[395010307,1764322244103,-1000.0,0.00011184,2]
[395010308,1764322244113,-1000.0,0.00011184,2]
[395010309,1764322244122,-289.9186015,0.00011184,2]
[395010310,1764322244131,-1000.0,0.00011184,2]
[395010311,1764322244141,-1000.0,0.00011184,2]
[395010312,1764322244152,-1000.0,0.00011184,2]
[395010313,1764322244161,-1000.0,0.00011184,2]
[395010314,1764322244170,-500.86400021,0.00011184,2]
[395010315,1764322244179,-502.9249721,0.00011184,2]
[395010316,1764322244189,-151.0,0.000112,2]
[395010317,1764322244199,-151.0,0.000114,2]
[395010318,1764322244208,-151.0,0.000116,2]
[395010319,1764322244217,-1006.52149473,0.00011626,2]
[395010320,1764322244227,-503.93025183,0.00011626,2]
[395010321,1764322244236,-1500.0,0.00011626,2]
[395010322,1764322244245,-1223.67257579,0.00011626,2]
[395010323,1764322244254,-1500.0,0.00011626,2]
[395010324,1764322244263,-225.18697532,0.00011644,2]
[395010325,1764322244273,-1500.0,0.00011732,2]
[395010326,1764322244282,-1500.0,0.00011732,2]
[395010327,1764322244291,-1500.0,0.00011732,2]
[395010328,1764322244301,-1500.0,0.00011732,2]
[395010329,1764322244311,-356.06682355,0.00011732,2]
[395010330,1764322244320,-1534.17663547,0.00011732,2]
[395010331,1764322244330,-151.0,0.000118,2]
[395010332,1764322244339,-151.0,0.000118,2]
[395010333,1764322244349,-779.8371219,0.00011825,2]
[395010334,1764322244360,-151.0,0.000119,2]
[395010335,1764322244369,-151.0,0.000119,2]
[395010336,1764322244380,-151.0,0.000119,2]
[395010337,1764322244390,-151.0,0.000119,2]
[395010338,1764322244400,-1159.82382021,0.00012,2]
[395010339,1764322244409,-1000.0,0.00012017,2]
[395010340,1764322244418,-1280.01288155,0.00012067,2]
[395010341,1764322244428,-151.0,0.000121,2]
[395010342,1764322244437,-151.0,0.000121,2]
[395010343,1764322244448,-806.4,0.0001214,2]
[395010344,1764322244458,-2000.0,0.00012174,2]
[395010345,1764322244467,-1510.8741328,0.00012174,2]
[395010346,1764322244477,-233.51889341,0.00012192,2]
[395010347,1764322244487,-2000.0,0.0001228,2]
[395010348,1764322244496,-2000.0,0.0001228,2]
[395010349,1764322244506,-1235.65753975,0.0001228,2]
[395010350,1764322244515,-2000.0,0.0001228,2]
[395010351,1764322244525,-151.0,0.000123,2]
[395010352,1764322244534,-151.0,0.000123,2]
[395010353,1764322244544,-1006.82,0.00012329,2]
[395010354,1764322244553,-839.01,0.00012329,2]
[395010355,1764322244563,-699.18,0.00012329,2]
[395010356,1764322244572,-582.65,0.00012329,2]
[395010357,1764322244582,-485.54,0.00012329,2]
[395010358,1764322244591,-404.62,0.00012329,2]
[395010359,1764322244600,-337.18,0.00012329,2]
[395010360,1764322244612,-280.98,0.00012329,2]
[395010361,1764322244622,-234.15,0.00012329,2]
[395010362,1764322244631,-195.13,0.00012329,2]
[395010363,1764322244641,-162.61,0.00012329,2]
[395010364,1764322244651,-813.05,0.00012329,2]
[395010365,1764322244661,-1831.77206952,0.000125,2]
[395010366,1764322244671,-151.0,0.000125,2]
[395010367,1764322244682,-151.0,0.000125,2]
[395010368,1764322244692,-224.39,0.00012591,2]
[395010369,1764322244702,-151.0,0.000127,2]
[395010370,1764322244712,-151.0,0.000127,2]
[395010371,1764322244722,-10000.0,0.000127,2]
[395010372,1764322244733,-902.69336918,0.00012722,2]
[395010373,1764322244742,-242.15909246,0.0001274,2]
[395010374,1764322244752,-600.0,0.00012797,2]
[395010375,1764322244761,-151.0,0.000128,2]
[395010376,1764322244771,-151.0,0.000128,2]
[395010377,1764322244780,-2481.26838956,0.00012828,2]
[395010378,1764322244790,-2500.0,0.00012828,2]
[395010379,1764322244800,-2500.0,0.00012828,2]
[395010380,1764322244809,-160.0,0.000129,2]
[395010381,1764322244820,-160.0,0.000129,2]
[395010382,1764322244835,-160.0,0.000129,2]
[395010383,1764322244844,-160.0,0.000129,2]
[395010384,1764322244853,-160.0,0.000129,2]
[395010385,1764322244864,-600.0,0.0001293,2]
[395010386,1764322244874,-600.0,0.00013063,2]
[395010387,1764322244884,-367.53961841,0.00013133,2]
[395010388,1764322244893,-160.0,0.00013195,3]
[395010389,1764322244903,-600.0,0.00013197,2]
[395010390,1764322244913,-1000.0,0.00013219,2]
[395010391,1764322244922,-244.0,0.00013219,2]
[395010392,1764322244932,-251.11897888,0.00013288,2]
[395010393,1764322244942,-160.0,0.00013311,4]
[395010394,1764322244951,-500.358,0.0001333,2]
[395010395,1764322244961,-600.0,0.0001333,2]
[395010396,1764322244970,-3000.0,0.00013376,2]
[395010397,1764322244979,-503.40721938,0.00013376,2]
[395010398,1764322244989,-164.9625808,0.00013425,2]
[395010399,1764322244998,-164.9625808,0.00013425,2]
[395010400,1764322245008,-164.9625808,0.00013425,2]
[395010401,1764322245017,-164.9625808,0.00013425,2]
[395010402,1764322245027,-164.9625808,0.00013425,2]
[395010403,1764322245037,-164.9625808,0.00013425,2]
[395010404,1764322245047,-164.9625808,0.00013425,2]
[395010405,1764322245056,-164.9625808,0.00013425,2]
[395010406,1764322245066,-164.9625808,0.00013425,2]
[395010407,1764322245076,-164.9625808,0.00013425,2]
[395010408,1764322245086,-329.4554048,0.00013425,2]
[395010409,1764322245095,-160.0,0.00013428,5]
[395010410,1764322245105,-601.14096685,0.00013463,2]
[395010411,1764322245115,-160.0,0.00013545,6]
[395010412,1764322245124,-160.0,0.00013661,7]
[395010413,1764322245134,-500.0,0.00013698,2]
[395010414,1764322245143,-500.0,0.00013698,2]
[395010415,1764322245152,-450.67347191,0.00013698,2]
[395010416,1764322245162,-1320.8,0.00013698,2]
[395010417,1764322245171,-1320.8,0.00013698,2]
[395010418,1764322245180,-1320.8,0.00013698,2]
[395010419,1764322245190,-1320.8,0.00013698,2]
[395010420,1764322245199,-1320.8,0.00013698,2]
[395010421,1764322245209,-1320.8,0.00013698,2]
[395010422,1764322245218,-1320.8,0.00013698,2]
[395010423,1764322245228,-1320.8,0.00013698,2]
[395010424,1764322245237,-1320.8,0.00013698,2]
[395010425,1764322245247,-1320.8,0.00013698,2]
[395010426,1764322245256,-1320.8,0.00013698,2]
[395010427,1764322245266,-1320.8,0.00013698,2]
[395010428,1764322245275,-1320.8,0.00013698,2]
[395010429,1764322245285,-1320.8,0.00013698,2]
[395010430,1764322245295,-1320.8,0.00013698,2]
[395010431,1764322245304,-1320.8,0.00013698,2]
[395010432,1764322245315,-1320.8,0.00013698,2]
[395010433,1764322245324,-1320.8,0.00013698,2]
[395010434,1764322245334,-1320.8,0.00013698,2]
[395010435,1764322245343,-1320.8,0.00013698,2]
[395010436,1764322245352,-1320.8,0.00013698,2]
[395010437,1764322245363,-1320.8,0.00013698,2]
[395010438,1764322245372,-1320.8,0.00013698,2]
[395010439,1764322245381,-1320.80391919,0.00013698,2]
[395010440,1764322245391,-150.52399161,0.00013698,2]
[395010441,1764322245400,-1646.86798154,0.00013699,2]
[395010442,1764322245410,-500.0,0.00013699,2]
[395010443,1764322245419,-500.0,0.00013699,2]
[395010444,1764322245428,-500.0,0.00013699,2]
[395010445,1764322245748,-500.0,0.00013699,2]
[395010447,1764322245759,-500.0,0.00013699,2]
[395010449,1764322245770,-500.0,0.00013699,2]
[395010450,1764322245780,-500.0,0.00013699,2]
[395010452,1764322245790,-500.0,0.00013699,2]
[395010453,1764322245800,-500.0,0.00013699,2]
[395010454,1764322245810,-376.0,0.00013699,2]
[395010456,1764322245821,-500.0,0.00013699,2]
[395010457,1764322245834,-500.0,0.00013699,2]
[395010458,1764322245846,-500.0,0.00013699,2]
[395010459,1764322245857,-500.0,0.00013699,2]
[395010460,1764322245867,-500.0,0.00013699,2]
[395010461,1764322245878,-500.0,0.00013699,2]
[395010462,1764322245888,-500.0,0.00013699,2]
[395010463,1764322245899,-349.12473722,0.00013699,2]
[395010464,1764322245910,-1368.6057,0.00013699,2]
[395010465,1764322245920,-1000.0,0.00013699,2]
[395010466,1764322245930,-750.0,0.00013699,2]
[395010467,1764322245940,-151.0,0.00013699,2]
[395010468,1764322245950,-151.0,0.00013699,2]
[395010469,1764322245962,-151.483111,0.00013699,2]
[395010470,1764322245972,-151.000176,0.00013699,2]
[395010471,1764322245982,-1925.286086,0.00013699,2]
[395010472,1764322245992,-1925.286086,0.00013699,2]
[395010473,1764322246002,-1925.286086,0.00013699,2]
[395010474,1764322246012,-1925.286086,0.00013699,2]
[395010475,1764322246021,-1925.286086,0.00013699,2]
[395010476,1764322246031,-1925.286086,0.00013699,2]
[395010477,1764322246041,-1925.286086,0.00013699,2]
[395010478,1764322246050,-1925.286086,0.00013699,2]
[395010479,1764322246060,-1925.286086,0.00013699,2]
[395010480,1764322246070,-1925.286086,0.00013699,2]
[395010481,1764322246079,-1925.286086,0.00013699,2]
[395010482,1764322246089,-1925.286086,0.00013699,2]
[395010483,1764322246098,-1925.286086,0.00013699,2]
[395010484,1764322246109,-1925.286086,0.00013699,2]
[395010485,1764322246119,-1925.286086,0.00013699,2]
[395010486,1764322246129,-1925.286086,0.00013699,2]
[395010487,1764322246139,-1925.286086,0.00013699,2]
[395010488,1764322246148,-1925.286086,0.00013699,2]
[395010489,1764322246157,-1925.286086,0.00013699,2]
[395010490,1764322246167,-1925.286076,0.00013699,2]
[395010491,1764322246177,-500.0,0.00013699,2]
[395010492,1764322246187,-2000.0,0.00013699,7]
[395010493,1764322246196,-160.0,0.00013699,2]
[395010494,1764322246206,-1000.0,0.00013699,2]
[395010495,1764322246216,-554.8872,0.00013699,2]
[395010496,1764322246226,-151.0,0.000137,2]
[395010497,1764322246236,-151.0,0.000137,2]
[395010498,1764322246246,-160.0,0.00013778,8]
[395010499,1764322246255,-260.4103811,0.00013836,2]
[395010500,1764322246265,-160.0,0.00013894,9]
[395010501,1764322246275,-3500.0,0.00013924,2]
[395010502,1764322246285,-500.0,0.00013973,2]
[395010503,1764322246295,-200.0,0.00013983,2]
[395010504,1764322246306,-200.37748328,0.00013983,2]
[395010505,1764322246315,-200.0,0.00013983,2]
[395010506,1764322246326,-1016.0,0.00014,2]
[395010507,1764322246335,-168.17973435,0.00014,2]
[395010509,1764322246345,-160.0,0.00014011,10]
[395010511,1764322246354,-160.0,0.00014127,11]
[395010512,1764322246364,-160.0,0.00014244,12]
[395010513,1764322246374,-500.0,0.00014247,2]
[395010514,1764322246383,-260.0,0.00014247,2]
[395010515,1764322246393,-160.0,0.0001436,13]
[395010517,1764322246403,-270.0455652,0.00014384,2]
[395010518,1764322246414,-4000.0,0.00014472,2]
[395010519,1764322246424,-160.0,0.00014477,14]
[395010520,1764322246434,-500.0,0.00014521,2]
[395010521,1764322246444,-1000.0,0.00014541,2]
[395010522,1764322246454,-492.0,0.00014541,2]
[395010523,1764322246463,-160.0,0.00014593,15]
[395010524,1764322246472,-151.0,0.000146,2]
[395010525,1764322246482,-151.0,0.000146,2]
[395010526,1764322246491,-224.39,0.00014652,2]
[395010527,1764322246501,-160.0,0.0001471,16]
[395010528,1764322246511,-500.0,0.00014794,2]
[395010529,1764322246520,-500.0,0.00014795,2]
[395010530,1764322246529,-360.0,0.00014795,2]
[395010531,1764322246538,-160.0,0.00014827,17]
[395010532,1764322246548,-204.75635215,0.00014827,5]
[395010533,1764322246557,-280.03725112,0.00014932,2]
[395010534,1764322246567,-1040.83283849,0.00015,2]
[395010535,1764322246576,-428.17693612,0.00015,2]
[395010536,1764322246586,-335.06300064,0.0001502,2]
[395010537,1764322246595,-500.0,0.00015068,2]
[395010538,1764322246604,-194.602643,0.00015068,2]
[395010539,1764322246614,-151.0,0.00015068,2]
[395010540,1764322246623,-151.0,0.00015068,2]
[395010541,1764322246633,-151.0,0.00015068,2]
[395010542,1764322246642,-151.0,0.00015068,2]
[395010543,1764322246652,-151.0,0.00015068,2]
[395010544,1764322246661,-151.0,0.00015068,2]
[395010545,1764322246671,-151.0,0.00015068,2]
[395010546,1764322246680,-151.0,0.00015068,2]
[395010547,1764322246690,-151.0,0.00015068,2]
[395010548,1764322246700,-151.0,0.00015068,2]
[395010549,1764322246710,-151.0,0.00015068,2]
[395010550,1764322246719,-151.0,0.00015068,2]
[395010551,1764322246729,-151.0,0.00015068,2]
[395010552,1764322246739,-196.263495,0.00015068,2]
[395010553,1764322246749,-153.0,0.00015068,2]
[395010554,1764322246759,-153.0,0.00015068,2]
[395010555,1764322246768,-153.0,0.00015068,2]
[395010556,1764322246777,-153.0,0.00015068,2]
[395010557,1764322246787,-153.0,0.00015068,2]
[395010558,1764322246797,-153.0,0.00015068,2]
[395010559,1764322246806,-153.0,0.00015068,2]
[395010560,1764322246816,-153.0,0.00015068,2]
[395010561,1764322246828,-153.0,0.00015068,2]
[395010562,1764322246838,-410.49879458,0.00015133,2]
[395010563,1764322246848,-460.0,0.00015342,2]
[395010564,1764322246857,-500.0,0.00015342,2]
[395010565,1764322246867,-290.39862941,0.0001548,2]
[395010566,1764322246876,-1280.01288155,0.0001549,2]
[395010567,1764322246885,-151.0,0.000155,2]
[395010568,1764322246898,-151.0,0.000155,2]
[395010569,1764322246907,-500.0,0.00015616,2]
[395010570,1764322246916,-301.6770173,0.00015836,2]
[395010571,1764322246925,-301.6770173,0.00015836,2]
[395010572,1764322246935,-301.6770173,0.00015836,2]
[395010573,1764322246944,-301.6770173,0.00015836,2]
[395010574,1764322246953,-301.6770173,0.00015836,2]
[395010575,1764322246964,-301.6770173,0.00015836,2]
[395010576,1764322246973,-301.6770173,0.00015836,2]
[395010577,1764322246983,-301.6770173,0.00015836,2]
[395010578,1764322246992,-301.6770173,0.00015836,2]
[395010579,1764322247001,-301.6770173,0.00015836,2]
[395010580,1764322247011,-301.6770173,0.00015836,2]
[395010581,1764322247020,-301.6770173,0.00015836,2]
[395010582,1764322247029,-301.6770173,0.00015836,2]
[395010583,1764322247038,-301.6770173,0.00015836,2]
[395010584,1764322247047,-301.6770173,0.00015836,2]
[395010585,1764322247056,-301.6770173,0.00015836,2]
[395010586,1764322247065,-301.6770173,0.00015836,2]
[395010587,1764322247075,-731.006435,0.00015881,2]
[395010588,1764322247084,-500.0,0.0001589,2]
[395010589,1764322247093,-560.0,0.0001589,2]
[395010590,1764322247103,-500.0,0.0001589,2]
[395010591,1764322247113,-160.0,0.000159,3]
[395010592,1764322247122,-160.0,0.000159,3]
[395010593,1764322247131,-160.0,0.000159,3]
[395010594,1764322247141,-1000.0,0.00015995,2]
[395010595,1764322247150,-791.0,0.00015995,2]
[395010596,1764322247159,-301.1433787,0.00016028,2]
[395010597,1764322247169,-150.0,0.00016157,2]
[395010598,1764322247178,-500.0,0.00016164,2]
[395010599,1764322247187,-301.6770173,0.00016164,2]
[395010600,1764322247196,-301.6770173,0.00016164,2]
[395010601,1764322247205,-301.6770173,0.00016164,2]
[395010602,1764322247215,-301.6770173,0.00016164,2]
[395010603,1764322247224,-301.6770173,0.00016164,2]
[395010604,1764322247233,-301.6770173,0.00016164,2]
[395010605,1764322247243,-301.6770173,0.00016164,2]
[395010606,1764322247252,-301.6770173,0.00016164,2]
[395010607,1764322247262,-301.6770173,0.00016164,2]
[395010608,1764322247271,-301.6770173,0.00016164,2]
[395010609,1764322247281,-301.6770173,0.00016164,2]
[395010610,1764322247291,-301.6770173,0.00016164,2]
[395010611,1764322247301,-301.6770173,0.00016164,2]
[395010612,1764322247311,-301.6770173,0.00016164,2]
[395010613,1764322247320,-301.6770173,0.00016164,2]
[395010614,1764322247330,-603.3540346,0.00016164,2]
[395010615,1764322247339,-301.6770173,0.00016164,2]
[395010616,1764322247348,-301.6770173,0.00016164,2]
[395010617,1764322247359,-301.6770173,0.00016164,2]
[395010618,1764322247369,-301.6770173,0.00016164,2]
[395010619,1764322247378,-301.6770173,0.00016164,2]
[395010620,1764322247387,-301.6770173,0.00016164,2]
[395010621,1764322247397,-301.6770173,0.00016164,2]
[395010622,1764322247406,-301.6770173,0.00016164,2]
[395010623,1764322247416,-200.0,0.00016215,2]
[395010624,1764322247425,-731.006435,0.00016251,2]
[395010625,1764322247435,-151.0,0.000164,2]
[395010626,1764322247444,-151.0,0.000164,2]
[395010627,1764322247454,-151.0,0.000164,2]
[395010628,1764322247464,-175.6,0.00016438,2]
[395010629,1764322247473,-660.0,0.00016438,2]
[395010630,1764322247485,-500.0,0.00016438,2]
[395010631,1764322247495,-153.027619,0.00016438,2]
[395010632,1764322247504,-200.0,0.00016438,3]
[395010633,1764322247514,-200.0,0.00016438,3]
[395010634,1764322247523,-200.0,0.00016438,3]
[395010635,1764322247532,-200.0,0.00016438,3]
[395010636,1764322247541,-200.0,0.00016438,3]
[395010637,1764322247551,-200.0,0.00016438,3]
[395010638,1764322247560,-153.0,0.00016438,2]
[395010639,1764322247570,-153.0,0.00016438,2]
[395010640,1764322247580,-153.0,0.00016438,2]
[395010641,1764322247589,-153.0,0.00016438,2]
[395010642,1764322247599,-153.0,0.00016438,2]
[395010643,1764322247609,-258.73281321,0.00016438,2]
[395010644,1764322247619,-800.0,0.00016483,2]
[395010645,1764322247629,-731.006435,0.0001656,3]
[395010646,1764322247639,-595.8577247,0.0001662,2]
[395010647,1764322247648,-595.8577247,0.0001662,2]
[395010648,1764322247658,-608.423797,0.0001662,2]
[395010649,1764322247669,-731.006435,0.00016621,2]
[395010650,1764322247679,-731.006435,0.00016692,3]
[395010651,1764322247689,-500.0,0.00016712,2]
[395010652,1764322247699,-301.6770173,0.00016712,2]
[395010653,1764322247708,-301.6770173,0.00016712,2]
[395010654,1764322247717,-1000.0,0.000168,3]
[395010655,1764322247727,-731.006435,0.00016824,3]
[395010656,1764322247737,-150.0,0.00016926,2]
[395010657,1764322247747,-800.0,0.0001694,2]
[395010658,1764322247756,-731.006435,0.00016956,3]
[395010659,1764322247766,-500.0,0.00016986,2]
[395010660,1764322247775,-760.0,0.00016986,2]
[395010661,1764322247785,-500.0,0.00016986,2]
[395010662,1764322247795,-731.006435,0.0001699,2]
[395010663,1764322247805,-501.82859294,0.00017009,2]
[395010664,1764322247814,-800.0,0.00017052,2]
[395010665,1764322247824,-731.006435,0.00017088,3]
[395010666,1764322247836,-800.0,0.00017088,2]
[395010667,1764322247846,-453.45797076,0.00017133,2]
[395010668,1764322247855,-301.6770173,0.00017205,2]
[395010669,1764322247864,-301.6770173,0.00017205,2]
[395010670,1764322247875,-301.6770173,0.00017205,2]
[395010671,1764322247885,-301.6770173,0.00017205,2]
[395010672,1764322247894,-301.6770173,0.00017205,2]
[395010673,1764322247904,-500.0,0.0001726,2]
[395010674,1764322247915,-151.0,0.000173,2]
[395010675,1764322247924,-151.0,0.000173,2]
[395010676,1764322247935,-151.0,0.000173,2]
[395010677,1764322247945,-160.37359926,0.00017329,2]
[395010678,1764322247955,-800.0,0.00017333,2]
[395010679,1764322247964,-731.006435,0.0001736,2]
[395010680,1764322247973,-800.0,0.00017414,2]
[395010681,1764322247983,-595.8577247,0.00017441,2]
[395010682,1764322247992,-595.8577247,0.00017441,2]
[395010683,1764322248003,-595.8577247,0.00017441,2]
[395010684,1764322248014,-595.8577247,0.00017441,2]
[395010685,1764322248023,-595.8577247,0.00017441,2]
[395010686,1764322248032,-595.8577247,0.00017441,2]
[395010687,1764322248041,-595.8577247,0.00017441,2]
[395010688,1764322248052,-800.0,0.00017447,2]
[395010689,1764322248061,-800.0,0.00017492,2]
[395010690,1764322248071,-800.0,0.00017532,2]
[395010691,1764322248080,-860.0,0.00017534,2]
[395010692,1764322248089,-500.0,0.00017534,2]
[395010693,1764322248099,-1000.0,0.00017594,2]
[395010694,1764322248109,-1000.0,0.00017594,2]
[395010695,1764322248193,-2125.7209172,0.000176,2]
[395010696,1764322248203,-1074.80767897,0.00017612,2]
[395010697,1764322248212,-175.6,0.00017671,2]
[395010698,1764322248221,-150.0,0.00017696,2]
[395010699,1764322248230,-634.26738285,0.00017701,2]
[395010700,1764322248239,-800.0,0.00017702,2]
[395010701,1764322248248,-634.26738285,0.00017729,2]
[395010702,1764322248257,-800.0,0.00017743,2]
[395010703,1764322248266,-800.0,0.00017796,2]
[395010704,1764322248275,-200.0,0.00017799,2]
[395010705,1764322248284,-200.0,0.00017799,2]
[395010706,1764322248293,-215.55292613,0.00017799,2]
[395010707,1764322248302,-160.0,0.00017799,2]
[395010708,1764322248311,-33275.71033204,0.000178,3]
[395010709,1764322248320,-500.0,0.00017808,2]
[395010710,1764322248329,-731.006435,0.00017992,4]
[395010711,1764322248338,-200.0,0.00017999,2]
[395010712,1764322248347,-160.0,0.00017999,2]
[395010713,1764322248357,-353.59244258,0.00018,3]
[395010714,1764322248366,-299.85423426,0.00018,2]
[395010715,1764322248375,-151.0,0.00018,2]
[395010716,1764322248384,-151.0,0.00018,2]
[395010717,1764322248393,-151.0,0.00018,2]
[395010718,1764322248402,-151.0,0.00018,2]
[395010719,1764322248411,-151.0,0.00018,2]
[395010720,1764322248420,-151.0,0.00018,2]
[395010721,1764322248429,-151.0,0.00018,2]
[395010722,1764322248438,-151.0,0.00018,2]
[395010723,1764322248446,-151.0,0.00018,2]
[395010724,1764322248455,-166.0,0.00018,2]
[395010725,1764322248464,-172.0,0.00018,2]
[395010726,1764322248473,-166.0,0.00018,2]
[395010727,1764322248483,-166.0,0.00018,2]
[395010728,1764322248492,-166.0,0.00018,2]
[395010729,1764322248501,-166.0,0.00018,2]
[395010730,1764322248510,-166.0,0.00018,2]
[395010731,1764322248519,-166.0,0.00018,2]
[395010732,1764322248528,-166.0,0.00018,2]
[395010733,1764322248538,-152.0,0.00018,2]
[395010734,1764322248547,-152.0,0.00018,2]
[395010735,1764322248556,-152.0,0.00018,2]
[395010736,1764322248565,-152.0,0.00018,2]
[395010737,1764322248574,-152.0,0.00018,2]
[395010738,1764322248583,-152.0,0.00018,2]
[395010739,1764322248592,-152.0,0.00018,2]
[395010740,1764322248601,-153.40358903,0.00018,2]
[395010741,1764322248611,-152.0,0.00018,2]
[395010742,1764322248620,-152.0,0.00018,2]
[395010743,1764322248629,-152.0,0.00018,2]
[395010744,1764322248640,-152.0,0.00018,2]
[395010745,1764322248648,-152.0,0.00018,2]
[395010746,1764322248658,-152.0,0.00018,2]
[395010747,1764322248667,-152.0,0.00018,2]